[Event "Titled Tuesday Blitz February 14 Early 2023"]
[White "Csonka, Balazs"]
[Black "Reprintsev, Alexander"]
[WhiteFideId "742910"]
[BlackFideId "14100541"]
[WhiteElo "2496"]
[BlackElo "2253"]
[Result "0-1"]
[Round "06"]
[TimeControl "180+2"]
[Date "2023.02.15"]
[WhiteClock "0:00:04"]
[BlackClock "0:00:18"]

1. Nf3 {[%clk 0:02:57]}  Nc6 {[%clk 0:02:56]} 2. e4 {[%clk 0:02:50]}  d5 {[%clk 0:02:53]} 3. exd5 {[%clk 0:02:47]}  Qxd5 {[%clk 0:02:53]} 4. Nc3 {[%clk 0:02:34]}  Qa5 {[%clk 0:02:47]} 5. d4 {[%clk 0:02:23]}  Nf6 {[%clk 0:02:46]} 6. Bd2 {[%clk 0:02:09]}  a6 {[%clk 0:02:46]} 7. a3 {[%clk 0:01:45]}  Bg4 {[%clk 0:02:41]} 8. h3 {[%clk 0:01:29]}  Qh5 {[%clk 0:02:38]} 9. d5 {[%clk 0:01:20]}  Bxf3 {[%clk 0:02:34]} 10. Qxf3 {[%clk 0:01:20]}  Qxf3 {[%clk 0:02:34]} 11. gxf3 {[%clk 0:01:21]}  Nd4 {[%clk 0:02:34]} 12. O-O-O {[%clk 0:01:18]}  Nxf3 {[%clk 0:02:33]} 13. Bf4 {[%clk 0:01:16]}  O-O-O {[%clk 0:02:25]} 14. h4 {[%clk 0:00:54]}  Nh5 {[%clk 0:01:54]} 15. Rd3 {[%clk 0:00:28]}  Nxf4 {[%clk 0:01:43]} 16. Rxf3 {[%clk 0:00:28]}  g6 {[%clk 0:00:50]} 17. Rxf4 {[%clk 0:00:12]}  Bh6 {[%clk 0:00:50]} 18. Bh3+ {[%clk 0:00:10]}  f5 {[%clk 0:00:41]} 19. Ne2 {[%clk 0:00:10]}  Rxd5 {[%clk 0:00:41]} 20. Kb1 {[%clk 0:00:10]}  Rd2 {[%clk 0:00:36]} 21. Rf3 {[%clk 0:00:02]}  Rxe2 {[%clk 0:00:35]} 22. h5 {[%clk 0:00:03]}  e6 {[%clk 0:00:25]} 23. hxg6 {[%clk 0:00:01]}  hxg6 {[%clk 0:00:25]} 24. Rg1 {[%clk 0:00:02]}  g5 {[%clk 0:00:24]} 25. Bg2 {[%clk 0:00:02]}  g4 {[%clk 0:00:22]} 26. Rb3 {[%clk 0:00:02]}  c6 {[%clk 0:00:20]} 27. Rh1 {[%clk 0:00:03]}  Bg7 {[%clk 0:00:20]} 28. Rxh8+ {[%clk 0:00:02]}  Bxh8 {[%clk 0:00:20]} 29. Re3 {[%clk 0:00:03]}  Rxe3 {[%clk 0:00:20]} 30. fxe3 {[%clk 0:00:03]}  Bf6 {[%clk 0:00:18]} 31. Kc1 {[%clk 0:00:04]}  Bg5 {[%clk 0:00:18]} 32. Kd2 {[%clk 0:00:04]}  Kd7 {[%clk 0:00:18]} 33. Kd3 {[%clk 0:00:05]}  e5 {[%clk 0:00:18]} 34. b3 {[%clk 0:00:03]}  e4+ {[%clk 0:00:18]} 35. Kd2 {[%clk 0:00:04]}  Ke6 {[%clk 0:00:18]} 36. Bf1 {[%clk 0:00:04]}  b5 {[%clk 0:00:18]} 37. Ke2 {[%clk 0:00:03]}  Kd5 {[%clk 0:00:19]} 38. Kf2 {[%clk 0:00:03]}  Bh4+ {[%clk 0:00:19]} 39. Ke2 {[%clk 0:00:03]}  Ke5 {[%clk 0:00:19]} 40. Kd2 {[%clk 0:00:04]}  Be7 {[%clk 0:00:18]} 41. Ke2 {[%clk 0:00:04]}  Bxa3 {[%clk 0:00:18]} 0-1


[Site "https://www.chess.com"]

[Event "Titled Tuesday Blitz February 14 Early 2023"]
[White "Sokolovsky, Yahli"]
[Black "Degenbaev, Aziz"]
[WhiteFideId "2820242"]
[BlackFideId "13802640"]
[WhiteElo "2461"]
[BlackElo "2203"]
[Result "1-0"]
[Round "06"]
[TimeControl "180+2"]
[Date "2023.02.15"]
[WhiteClock "0:00:17"]
[BlackClock "0:00:01"]

1. b3 {[%clk 0:03:00]}  d6 {[%clk 0:02:58]} 2. e3 {[%clk 0:02:55]}  f5 {[%clk 0:02:54]} 3. Bb2 {[%clk 0:02:54]}  e5 {[%clk 0:02:55]} 4. d4 {[%clk 0:02:51]}  e4 {[%clk 0:02:55]} 5. c4 {[%clk 0:02:50]}  Nf6 {[%clk 0:02:55]} 6. d5 {[%clk 0:02:51]}  g6 {[%clk 0:02:43]} 7. Ne2 {[%clk 0:02:49]}  Bg7 {[%clk 0:02:44]} 8. Qd2 {[%clk 0:02:38]}  O-O {[%clk 0:02:42]} 9. h4 {[%clk 0:02:34]}  a5 {[%clk 0:02:31]} 10. Nf4 {[%clk 0:02:34]}  Qe8 {[%clk 0:02:29]} 11. Nc3 {[%clk 0:02:33]}  Na6 {[%clk 0:02:25]} 12. Nb5 {[%clk 0:02:33]}  Bd7 {[%clk 0:02:24]} 13. Nd4 {[%clk 0:02:33]}  Nc5 {[%clk 0:02:22]} 14. Be2 {[%clk 0:02:14]}  Rf7 {[%clk 0:01:55]} 15. O-O-O {[%clk 0:02:01]}  Re7 {[%clk 0:01:45]} 16. Kb1 {[%clk 0:01:54]}  Ng4 {[%clk 0:01:18]} 17. Bxg4 {[%clk 0:01:51]}  fxg4 {[%clk 0:01:18]} 18. Qe2 {[%clk 0:01:37]}  h5 {[%clk 0:00:55]} 19. Bc3 {[%clk 0:01:28]}  Ra6 {[%clk 0:00:47]} 20. Qb2 {[%clk 0:01:27]}  a4 {[%clk 0:00:46]} 21. b4 {[%clk 0:01:23]}  a3 {[%clk 0:00:46]} 22. Qd2 {[%clk 0:01:19]}  Na4 {[%clk 0:00:46]} 23. Ba1 {[%clk 0:01:19]}  Rb6 {[%clk 0:00:45]} 24. Nde6 {[%clk 0:01:09]}  Bxe6 {[%clk 0:00:40]} 25. dxe6 {[%clk 0:01:10]}  c5 {[%clk 0:00:13]} 26. b5 {[%clk 0:00:46]}  Bxa1 {[%clk 0:00:03]} 27. Kxa1 {[%clk 0:00:44]}  Qf8 {[%clk 0:00:03]} 28. Nd5 {[%clk 0:00:21]}  Qg7+ {[%clk 0:00:03]} 29. Kb1 {[%clk 0:00:21]}  Rxe6 {[%clk 0:00:03]} 30. Rc1 {[%clk 0:00:22]}  Re5 {[%clk 0:00:01]} 31. Nxb6 {[%clk 0:00:21]}  Nxb6 {[%clk 0:00:01]} 32. Qxd6 {[%clk 0:00:21]}  Rd5 {[%clk 0:00:01]} 33. Qe6+ {[%clk 0:00:17]}  Kh7 {[%clk 0:00:01]} 34. Rc2 {[%clk 0:00:17]} 1-0


[Site "https://www.chess.com"]

[Event "Titled Tuesday Blitz February 14 Early 2023"]
[White "Bychkov, Vladimir"]
[Black "Hansen, Sune Berg"]
[WhiteFideId "24151513"]
[BlackFideId "1400266"]
[WhiteElo "2225"]
[BlackElo "2517"]
[Result "0-1"]
[Round "06"]
[TimeControl "180+2"]
[Date "2023.02.15"]
[WhiteClock "0:01:01"]
[BlackClock "0:01:46"]

1. d4 {[%clk 0:03:00]}  Nf6 {[%clk 0:02:59]} 2. c4 {[%clk 0:03:00]}  g6 {[%clk 0:02:58]} 3. Nf3 {[%clk 0:03:01]}  Bg7 {[%clk 0:02:59]} 4. Nc3 {[%clk 0:03:01]}  d6 {[%clk 0:02:58]} 5. g3 {[%clk 0:03:01]}  O-O {[%clk 0:02:57]} 6. Bg2 {[%clk 0:03:02]}  Nbd7 {[%clk 0:02:58]} 7. O-O {[%clk 0:03:00]}  e5 {[%clk 0:02:58]} 8. h3 {[%clk 0:03:01]}  exd4 {[%clk 0:02:52]} 9. Nxd4 {[%clk 0:03:01]}  Re8 {[%clk 0:02:53]} 10. Re1 {[%clk 0:03:01]}  Nc5 {[%clk 0:02:51]} 11. e4 {[%clk 0:03:01]}  Bd7 {[%clk 0:02:50]} 12. f3 {[%clk 0:02:52]}  a5 {[%clk 0:02:34]} 13. Be3 {[%clk 0:02:51]}  a4 {[%clk 0:02:17]} 14. Bf2 {[%clk 0:02:49]}  c6 {[%clk 0:02:08]} 15. b4 {[%clk 0:02:44]}  axb3 {[%clk 0:02:06]} 16. axb3 {[%clk 0:02:44]}  Rxa1 {[%clk 0:02:05]} 17. Qxa1 {[%clk 0:02:45]}  Nd3 {[%clk 0:02:05]} 18. Rd1 {[%clk 0:02:40]}  Nxf2 {[%clk 0:02:05]} 19. Kxf2 {[%clk 0:02:41]}  Qb6 {[%clk 0:02:03]} 20. Na4 {[%clk 0:02:38]}  Qa7 {[%clk 0:02:02]} 21. Kf1 {[%clk 0:02:29]}  Nh5 {[%clk 0:02:00]} 22. g4 {[%clk 0:02:25]}  Nf4 {[%clk 0:01:57]} 23. e5 {[%clk 0:01:39]}  Bxe5 {[%clk 0:01:53]} 24. b4 {[%clk 0:01:06]}  b5 {[%clk 0:01:47]} 25. cxb5 {[%clk 0:01:01]}  cxb5 {[%clk 0:01:46]} 0-1


[Site "https://www.chess.com"]

[Event "Titled Tuesday Blitz February 14 Early 2023"]
[White "Panesar Vedant"]
[Black "Babikov, Ivan"]
[WhiteFideId "35033018"]
[BlackFideId "4161106"]
[WhiteElo "2387"]
[BlackElo "2239"]
[Result "1-0"]
[Round "06"]
[TimeControl "180+2"]
[Date "2023.02.15"]
[WhiteClock "0:00:54"]
[BlackClock "0:00:51"]

1. Nf3 {[%clk 0:03:00]}  d5 {[%clk 0:02:58]} 2. g3 {[%clk 0:02:56]}  c6 {[%clk 0:02:58]} 3. Bg2 {[%clk 0:02:53]}  Bg4 {[%clk 0:02:58]} 4. c4 {[%clk 0:02:51]}  e6 {[%clk 0:02:56]} 5. O-O {[%clk 0:02:50]}  Nf6 {[%clk 0:02:56]} 6. d3 {[%clk 0:02:47]}  Be7 {[%clk 0:02:54]} 7. Qb3 {[%clk 0:02:46]}  Qc8 {[%clk 0:02:46]} 8. Nc3 {[%clk 0:02:45]}  O-O {[%clk 0:02:46]} 9. Ne5 {[%clk 0:02:44]}  Bf5 {[%clk 0:02:43]} 10. cxd5 {[%clk 0:02:39]}  exd5 {[%clk 0:02:43]} 11. e4 {[%clk 0:02:37]}  dxe4 {[%clk 0:02:41]} 12. dxe4 {[%clk 0:02:38]}  Be6 {[%clk 0:02:39]} 13. Qc2 {[%clk 0:02:38]}  Nbd7 {[%clk 0:02:39]} 14. Nd3 {[%clk 0:02:38]}  Nc5 {[%clk 0:02:38]} 15. Nf4 {[%clk 0:02:38]}  Bc4 {[%clk 0:02:31]} 16. Rd1 {[%clk 0:02:38]}  Rd8 {[%clk 0:02:30]} 17. b3 {[%clk 0:02:34]}  Be6 {[%clk 0:02:26]} 18. Nxe6 {[%clk 0:02:29]}  Qxe6 {[%clk 0:02:26]} 19. Be3 {[%clk 0:02:19]}  Ng4 {[%clk 0:02:16]} 20. Bd4 {[%clk 0:02:15]}  Ne5 {[%clk 0:02:07]} 21. Ne2 {[%clk 0:01:44]}  Ned3 {[%clk 0:02:03]} 22. Be3 {[%clk 0:01:35]}  Nb4 {[%clk 0:01:47]} 23. Qc3 {[%clk 0:01:17]}  Ncd3 {[%clk 0:01:35]} 24. a3 {[%clk 0:01:03]}  Bf6 {[%clk 0:01:27]} 25. Nd4 {[%clk 0:01:02]}  Qd6 {[%clk 0:01:00]} 26. axb4 {[%clk 0:00:54]}  Bxd4 {[%clk 0:00:59]} 27. Qxd3 {[%clk 0:00:52]}  Bxa1 {[%clk 0:00:53]} 28. Qxd6 {[%clk 0:00:52]}  Rxd6 {[%clk 0:00:54]} 29. Rxd6 {[%clk 0:00:53]}  Bc3 {[%clk 0:00:53]} 30. Rd7 {[%clk 0:00:52]}  Bxb4 {[%clk 0:00:46]} 31. Rxb7 {[%clk 0:00:52]}  a5 {[%clk 0:00:47]} 32. e5 {[%clk 0:00:51]}  Rc8 {[%clk 0:00:47]} 33. f4 {[%clk 0:00:48]}  g6 {[%clk 0:00:46]} 34. Kf2 {[%clk 0:00:48]}  Rd8 {[%clk 0:00:46]} 35. Bxc6 {[%clk 0:00:48]}  Rd3 {[%clk 0:00:46]} 36. Be8 {[%clk 0:00:46]}  Rxb3 {[%clk 0:00:45]} 37. Bxf7+ {[%clk 0:00:46]}  Kf8 {[%clk 0:00:45]} 38. Bxb3 {[%clk 0:00:47]}  h5 {[%clk 0:00:42]} 39. Rxb4 {[%clk 0:00:47]}  axb4 {[%clk 0:00:42]} 40. Bc5+ {[%clk 0:00:48]}  Kg7 {[%clk 0:00:43]} 41. Bxb4 {[%clk 0:00:49]}  h4 {[%clk 0:00:44]} 42. gxh4 {[%clk 0:00:49]}  g5 {[%clk 0:00:44]} 43. Kg3 {[%clk 0:00:50]}  Kg6 {[%clk 0:00:45]} 44. hxg5 {[%clk 0:00:50]}  Kf5 {[%clk 0:00:46]} 45. Bc2+ {[%clk 0:00:50]}  Ke6 {[%clk 0:00:45]} 46. Kg4 {[%clk 0:00:51]}  Kf7 {[%clk 0:00:46]} 47. g6+ {[%clk 0:00:52]}  Kg8 {[%clk 0:00:47]} 48. Kg5 {[%clk 0:00:53]}  Kh8 {[%clk 0:00:48]} 49. f5 {[%clk 0:00:54]}  Kg7 {[%clk 0:00:49]} 50. f6+ {[%clk 0:00:54]}  Kh8 {[%clk 0:00:49]} 51. g7+ {[%clk 0:00:52]}  Kg8 {[%clk 0:00:50]} 52. Bb3+ {[%clk 0:00:53]}  Kh7 {[%clk 0:00:51]} 53. g8=Q# {[%clk 0:00:54]} 1-0


[Site "https://www.chess.com"]

[Event "Titled Tuesday Blitz February 14 Early 2023"]
[White "Tiarks, Jann-Christian"]
[Black "Tan, Jun Ying"]
[WhiteFideId "12951595"]
[BlackFideId "5710413"]
[WhiteElo "2222"]
[BlackElo "2307"]
[Result "0-1"]
[Round "06"]
[TimeControl "180+2"]
[Date "2023.02.15"]
[WhiteClock "0:00:12"]
[BlackClock "0:00:10"]

1. e4 {[%clk 0:02:56]}  c5 {[%clk 0:02:59]} 2. c3 {[%clk 0:02:55]}  Nf6 {[%clk 0:02:58]} 3. e5 {[%clk 0:02:53]}  Nd5 {[%clk 0:02:59]} 4. d4 {[%clk 0:02:52]}  cxd4 {[%clk 0:02:59]} 5. Nf3 {[%clk 0:02:53]}  b6 {[%clk 0:02:58]} 6. Bc4 {[%clk 0:02:49]}  e6 {[%clk 0:02:57]} 7. Qxd4 {[%clk 0:02:42]}  Nc6 {[%clk 0:02:53]} 8. Qe4 {[%clk 0:02:37]}  Nce7 {[%clk 0:02:51]} 9. Bg5 {[%clk 0:02:26]}  Bb7 {[%clk 0:02:49]} 10. O-O {[%clk 0:02:20]}  Qc7 {[%clk 0:02:46]} 11. Qe2 {[%clk 0:02:10]}  Ng6 {[%clk 0:02:45]} 12. Nbd2 {[%clk 0:02:04]}  h6 {[%clk 0:02:39]} 13. Bh4 {[%clk 0:01:47]}  Ndf4 {[%clk 0:02:19]} 14. Qd1 {[%clk 0:01:32]}  Nxg2 {[%clk 0:02:16]} 15. Bg3 {[%clk 0:01:24]}  N2f4 {[%clk 0:02:13]} 16. Re1 {[%clk 0:01:21]}  Nh3+ {[%clk 0:02:01]} 17. Kf1 {[%clk 0:01:19]}  h5 {[%clk 0:01:55]} 18. Nh4 {[%clk 0:01:09]}  Nxh4 {[%clk 0:01:49]} 19. Bxh4 {[%clk 0:01:08]}  g5 {[%clk 0:01:49]} 20. Re3 {[%clk 0:00:59]}  gxh4 {[%clk 0:01:29]} 21. Rxh3 {[%clk 0:00:59]}  Be7 {[%clk 0:01:28]} 22. Rd3 {[%clk 0:00:49]}  Qxe5 {[%clk 0:01:21]} 23. Nf3 {[%clk 0:00:46]}  Qc7 {[%clk 0:00:51]} 24. Bb5 {[%clk 0:00:45]}  O-O-O {[%clk 0:00:51]} 25. Qe2 {[%clk 0:00:40]}  Kb8 {[%clk 0:00:47]} 26. Rad1 {[%clk 0:00:39]}  d6 {[%clk 0:00:44]} 27. Ke1 {[%clk 0:00:32]}  Qc5 {[%clk 0:00:44]} 28. Rd4 {[%clk 0:00:31]}  Bxf3 {[%clk 0:00:40]} 29. Qxf3 {[%clk 0:00:29]}  Qxb5 {[%clk 0:00:41]} 30. Rb4 {[%clk 0:00:26]}  Qe5+ {[%clk 0:00:37]} 31. Kd2 {[%clk 0:00:26]}  Bg5+ {[%clk 0:00:35]} 32. Kc2 {[%clk 0:00:26]}  Qf5+ {[%clk 0:00:30]} 33. Qxf5 {[%clk 0:00:27]}  exf5 {[%clk 0:00:31]} 34. a4 {[%clk 0:00:28]}  Kc7 {[%clk 0:00:24]} 35. Rc4+ {[%clk 0:00:26]}  Kb7 {[%clk 0:00:24]} 36. Rb4 {[%clk 0:00:24]}  Be7 {[%clk 0:00:20]} 37. a5 {[%clk 0:00:23]}  d5 {[%clk 0:00:18]} 38. Rb3 {[%clk 0:00:22]}  Rd6 {[%clk 0:00:18]} 39. axb6 {[%clk 0:00:22]}  axb6 {[%clk 0:00:18]} 40. Rb5 {[%clk 0:00:20]}  Rhd8 {[%clk 0:00:17]} 41. Rd4 {[%clk 0:00:19]}  Bf6 {[%clk 0:00:17]} 42. Rf4 {[%clk 0:00:19]}  d4 {[%clk 0:00:13]} 43. Rbxf5 {[%clk 0:00:20]}  Bh8 {[%clk 0:00:06]} 44. Rxf7+ {[%clk 0:00:19]}  Ka6 {[%clk 0:00:07]} 45. cxd4 {[%clk 0:00:17]}  Rxd4 {[%clk 0:00:08]} 46. Rxd4 {[%clk 0:00:14]}  Rxd4 {[%clk 0:00:08]} 47. Rh7 {[%clk 0:00:15]}  Be5 {[%clk 0:00:07]} 48. Rxh5 {[%clk 0:00:15]}  Bxh2 {[%clk 0:00:07]} 49. Kc3 {[%clk 0:00:15]}  Rf4 {[%clk 0:00:06]} 50. b3 {[%clk 0:00:15]}  Bg1 {[%clk 0:00:06]} 51. f3 {[%clk 0:00:14]}  Rxf3+ {[%clk 0:00:06]} 52. Kc4 {[%clk 0:00:14]}  Bf2 {[%clk 0:00:07]} 53. b4 {[%clk 0:00:15]}  Rf4+ {[%clk 0:00:05]} 54. Kb3 {[%clk 0:00:16]}  Be1 {[%clk 0:00:05]} 55. b5+ {[%clk 0:00:16]}  Ka5 {[%clk 0:00:06]} 56. Re5 {[%clk 0:00:14]}  Rb4+ {[%clk 0:00:05]} 57. Ka3 {[%clk 0:00:14]}  Bc3 {[%clk 0:00:04]} 58. Re8 {[%clk 0:00:14]}  Bb2+ {[%clk 0:00:02]} 59. Ka2 {[%clk 0:00:14]}  Kxb5 {[%clk 0:00:03]} 60. Rf8 {[%clk 0:00:11]}  Bd4 {[%clk 0:00:04]} 61. Rf5+ {[%clk 0:00:12]}  Bc5 {[%clk 0:00:04]} 62. Rh5 {[%clk 0:00:12]}  Ra4+ {[%clk 0:00:05]} 63. Kb3 {[%clk 0:00:12]}  Rb4+ {[%clk 0:00:06]} 64. Kc3 {[%clk 0:00:13]}  Rc4+ {[%clk 0:00:07]} 65. Kd3 {[%clk 0:00:14]}  Kb4 {[%clk 0:00:07]} 66. Rh7 {[%clk 0:00:13]}  Rd4+ {[%clk 0:00:08]} 67. Kc2 {[%clk 0:00:13]}  Kc4 {[%clk 0:00:09]} 68. Rh5 {[%clk 0:00:12]}  b5 {[%clk 0:00:10]} 0-1


[Site "https://www.chess.com"]

[Event "Titled Tuesday Blitz February 14 Early 2023"]
[White "Koellner, Ruben Gideon"]
[Black "Mouhamad, Joachim"]
[WhiteFideId "12993093"]
[BlackFideId "656410"]
[WhiteElo "2426"]
[BlackElo "2238"]
[Result "1-0"]
[Round "06"]
[TimeControl "180+2"]
[Date "2023.02.15"]
[WhiteClock "0:00:10"]
[BlackClock "0:00:03"]

1. d4 {[%clk 0:03:00]}  d5 {[%clk 0:03:00]} 2. Nf3 {[%clk 0:03:01]}  e6 {[%clk 0:03:00]} 3. e3 {[%clk 0:03:01]}  Nf6 {[%clk 0:02:59]} 4. Nbd2 {[%clk 0:03:00]}  b6 {[%clk 0:02:59]} 5. Bd3 {[%clk 0:03:00]}  Bb7 {[%clk 0:03:00]} 6. Ne5 {[%clk 0:03:00]}  Nbd7 {[%clk 0:02:59]} 7. f4 {[%clk 0:03:00]}  Be7 {[%clk 0:02:53]} 8. Qf3 {[%clk 0:02:56]}  c5 {[%clk 0:02:45]} 9. c3 {[%clk 0:02:56]}  a5 {[%clk 0:02:41]} 10. a4 {[%clk 0:02:45]}  cxd4 {[%clk 0:02:40]} 11. exd4 {[%clk 0:02:42]}  Ba6 {[%clk 0:02:40]} 12. Bxa6 {[%clk 0:02:42]}  Rxa6 {[%clk 0:02:40]} 13. g4 {[%clk 0:02:43]}  Qa8 {[%clk 0:02:34]} 14. g5 {[%clk 0:02:41]}  Ne4 {[%clk 0:02:13]} 15. Nxd7 {[%clk 0:02:41]}  Nxd2 {[%clk 0:02:12]} 16. Bxd2 {[%clk 0:02:38]}  Kxd7 {[%clk 0:02:12]} 17. f5 {[%clk 0:02:35]}  Qc6 {[%clk 0:02:08]} 18. O-O {[%clk 0:02:33]}  Rf8 {[%clk 0:01:50]} 19. Qh3 {[%clk 0:02:20]}  b5 {[%clk 0:01:23]} 20. Qxh7 {[%clk 0:02:14]}  Qc4 {[%clk 0:01:07]} 21. Qxg7 {[%clk 0:01:51]}  Qd3 {[%clk 0:01:00]} 22. Bf4 {[%clk 0:01:39]}  Qxf5 {[%clk 0:00:58]} 23. axb5 {[%clk 0:01:39]}  Qg4+ {[%clk 0:00:54]} 24. Kh1 {[%clk 0:01:38]}  Raa8 {[%clk 0:00:55]} 25. Qe5 {[%clk 0:01:31]}  Rfc8 {[%clk 0:00:44]} 26. b6 {[%clk 0:01:27]}  Rab8 {[%clk 0:00:36]} 27. Rxa5 {[%clk 0:01:20]}  Rxb6 {[%clk 0:00:36]} 28. Ra7+ {[%clk 0:01:20]}  Ke8 {[%clk 0:00:36]} 29. Qh8+ {[%clk 0:01:15]}  Bf8 {[%clk 0:00:35]} 30. Qf6 {[%clk 0:01:16]}  Qh5 {[%clk 0:00:31]} 31. b4 {[%clk 0:00:55]}  Rbc6 {[%clk 0:00:31]} 32. Bd2 {[%clk 0:00:38]}  R6c7 {[%clk 0:00:27]} 33. Rxc7 {[%clk 0:00:33]}  Rxc7 {[%clk 0:00:27]} 34. Qf3 {[%clk 0:00:28]}  Qg6 {[%clk 0:00:14]} 35. Qe2 {[%clk 0:00:21]}  Bd6 {[%clk 0:00:12]} 36. Rf6 {[%clk 0:00:17]}  Qh7 {[%clk 0:00:08]} 37. Rh6 {[%clk 0:00:17]}  Qb1+ {[%clk 0:00:07]} 38. Kg2 {[%clk 0:00:17]}  Ra7 {[%clk 0:00:03]} 39. g6 {[%clk 0:00:12]}  fxg6 {[%clk 0:00:03]} 40. Qxe6+ {[%clk 0:00:11]}  Be7 {[%clk 0:00:03]} 41. Rh8# {[%clk 0:00:10]} 1-0


[Site "https://www.chess.com"]

[Event "Titled Tuesday Blitz February 14 Early 2023"]
[White "Iljin, Timofey"]
[Black "Mohamed Anees M"]
[WhiteFideId "14110180"]
[BlackFideId "35065815"]
[WhiteElo "2329"]
[BlackElo "2315"]
[Result "0-1"]
[Round "06"]
[TimeControl "180+2"]
[Date "2023.02.15"]
[WhiteClock "0:00:05"]
[BlackClock "0:00:17"]

1. e4 {[%clk 0:03:00]}  c5 {[%clk 0:02:59]} 2. c3 {[%clk 0:03:00]}  d5 {[%clk 0:02:57]} 3. exd5 {[%clk 0:03:00]}  Qxd5 {[%clk 0:02:58]} 4. d4 {[%clk 0:03:01]}  Nf6 {[%clk 0:02:58]} 5. Nf3 {[%clk 0:03:01]}  Nc6 {[%clk 0:02:57]} 6. Be3 {[%clk 0:02:57]}  e6 {[%clk 0:02:54]} 7. dxc5 {[%clk 0:02:57]}  Qxd1+ {[%clk 0:02:54]} 8. Kxd1 {[%clk 0:02:58]}  Ng4 {[%clk 0:02:54]} 9. b4 {[%clk 0:02:51]}  Nxe3+ {[%clk 0:02:54]} 10. fxe3 {[%clk 0:02:52]}  Be7 {[%clk 0:02:52]} 11. Nbd2 {[%clk 0:02:48]}  a5 {[%clk 0:02:52]} 12. Bb5 {[%clk 0:02:47]}  O-O {[%clk 0:02:51]} 13. Bxc6 {[%clk 0:02:44]}  bxc6 {[%clk 0:02:52]} 14. Kc2 {[%clk 0:02:44]}  Ba6 {[%clk 0:02:39]} 15. Nd4 {[%clk 0:02:37]}  Rfc8 {[%clk 0:02:35]} 16. a4 {[%clk 0:02:34]}  g6 {[%clk 0:02:24]} 17. b5 {[%clk 0:02:27]}  Bb7 {[%clk 0:02:22]} 18. N2b3 {[%clk 0:01:53]}  cxb5 {[%clk 0:02:20]} 19. axb5 {[%clk 0:01:54]}  a4 {[%clk 0:02:19]} 20. c6 {[%clk 0:01:49]}  axb3+ {[%clk 0:02:12]} 21. Kxb3 {[%clk 0:01:47]}  Rxa1 {[%clk 0:02:06]} 22. cxb7 {[%clk 0:01:00]}  Ra3+ {[%clk 0:02:04]} 23. Kb2 {[%clk 0:01:00]}  Raxc3 {[%clk 0:01:55]} 24. Nc6 {[%clk 0:00:46]}  R3xc6 {[%clk 0:01:35]} 25. bxc6 {[%clk 0:00:46]}  Rb8 {[%clk 0:01:34]} 26. Rd1 {[%clk 0:00:39]}  Bf6+ {[%clk 0:01:34]} 27. Kb3 {[%clk 0:00:39]}  Be5 {[%clk 0:01:35]} 28. h3 {[%clk 0:00:35]}  Kf8 {[%clk 0:01:31]} 29. Ka4 {[%clk 0:00:35]}  Ke8 {[%clk 0:01:31]} 30. Kb5 {[%clk 0:00:35]}  Rd8 {[%clk 0:01:31]} 31. Rb1 {[%clk 0:00:21]}  Rd5+ {[%clk 0:01:26]} 32. Ka6 {[%clk 0:00:17]}  Bb8 {[%clk 0:01:24]} 33. e4 {[%clk 0:00:16]}  Rd6 {[%clk 0:01:20]} 34. Kb6 {[%clk 0:00:14]}  Kd8 {[%clk 0:01:12]} 35. Ra1 {[%clk 0:00:14]}  Rd2 {[%clk 0:01:12]} 36. Rb1 {[%clk 0:00:07]}  h5 {[%clk 0:01:10]} 37. g4 {[%clk 0:00:07]}  h4 {[%clk 0:01:10]} 38. Rb3 {[%clk 0:00:06]}  Rd4 {[%clk 0:01:06]} 39. e5 {[%clk 0:00:04]}  Bxe5 {[%clk 0:01:02]} 40. Ra3 {[%clk 0:00:05]}  Rb4+ {[%clk 0:00:56]} 41. Kc5 {[%clk 0:00:05]}  Rb1 {[%clk 0:00:55]} 42. Ra8+ {[%clk 0:00:04]}  Ke7 {[%clk 0:00:55]} 43. Rc8 {[%clk 0:00:03]}  Bd6+ {[%clk 0:00:50]} 44. Kc4 {[%clk 0:00:03]}  Kf6 {[%clk 0:00:33]} 45. Kd3 {[%clk 0:00:01]}  Ke5 {[%clk 0:00:30]} 46. Kc4 {[%clk 0:00:02]}  f5 {[%clk 0:00:30]} 47. g5 {[%clk 0:00:01]}  f4 {[%clk 0:00:30]} 48. Rd8 {[%clk 0:00:02]}  f3 {[%clk 0:00:26]} 49. Rd7 {[%clk 0:00:02]}  f2 {[%clk 0:00:23]} 50. Rf7 {[%clk 0:00:02]}  f1=Q+ {[%clk 0:00:22]} 51. Rxf1 {[%clk 0:00:03]}  Rxf1 {[%clk 0:00:22]} 52. Kb5 {[%clk 0:00:04]}  Rb1+ {[%clk 0:00:22]} 53. Ka6 {[%clk 0:00:04]}  Bb8 {[%clk 0:00:23]} 54. Ka5 {[%clk 0:00:04]}  Kd6 {[%clk 0:00:22]} 55. c7 {[%clk 0:00:04]}  Bxc7+ {[%clk 0:00:22]} 56. Ka6 {[%clk 0:00:05]}  Kc5 {[%clk 0:00:18]} 57. Ka7 {[%clk 0:00:05]}  Ra1# {[%clk 0:00:17]} 0-1


[Site "https://www.chess.com"]

[Event "Titled Tuesday Blitz February 14 Early 2023"]
[White "Martynov, Pavel"]
[Black "Jarocka, Liwia"]
[WhiteFideId "4101260"]
[BlackFideId "21807558"]
[WhiteElo "2414"]
[BlackElo "2225"]
[Result "1/2-1/2"]
[Round "06"]
[TimeControl "180+2"]
[Date "2023.02.15"]
[WhiteClock "0:00:22"]
[BlackClock "0:00:40"]

1. e4 {[%clk 0:02:34]}  c5 {[%clk 0:02:59]} 2. Nf3 {[%clk 0:02:34]}  Nc6 {[%clk 0:02:56]} 3. Bb5 {[%clk 0:02:34]}  g6 {[%clk 0:02:54]} 4. O-O {[%clk 0:02:31]}  Bg7 {[%clk 0:02:50]} 5. c3 {[%clk 0:02:32]}  Nf6 {[%clk 0:02:46]} 6. Re1 {[%clk 0:02:32]}  O-O {[%clk 0:02:43]} 7. h3 {[%clk 0:02:32]}  Qc7 {[%clk 0:02:29]} 8. Na3 {[%clk 0:02:25]}  e5 {[%clk 0:02:23]} 9. Nc2 {[%clk 0:02:15]}  a6 {[%clk 0:02:14]} 10. Bf1 {[%clk 0:02:14]}  Re8 {[%clk 0:02:11]} 11. b3 {[%clk 0:01:59]}  d5 {[%clk 0:02:08]} 12. d3 {[%clk 0:01:51]}  b5 {[%clk 0:01:58]} 13. Ne3 {[%clk 0:01:47]}  dxe4 {[%clk 0:01:56]} 14. dxe4 {[%clk 0:01:47]}  Bb7 {[%clk 0:01:45]} 15. a4 {[%clk 0:01:42]}  Rad8 {[%clk 0:01:44]} 16. Qc2 {[%clk 0:01:41]}  b4 {[%clk 0:01:38]} 17. Bc4 {[%clk 0:01:34]}  bxc3 {[%clk 0:01:35]} 18. Qxc3 {[%clk 0:01:26]}  Nxe4 {[%clk 0:01:32]} 19. Qc2 {[%clk 0:01:09]}  Nb4 {[%clk 0:01:18]} 20. Qb1 {[%clk 0:01:09]}  Nc3 {[%clk 0:01:13]} 21. Qb2 {[%clk 0:01:05]}  Bxf3 {[%clk 0:01:07]} 22. Qxc3 {[%clk 0:00:34]}  e4 {[%clk 0:01:05]} 23. Qxg7+ {[%clk 0:00:35]}  Kxg7 {[%clk 0:01:03]} 24. Bb2+ {[%clk 0:00:36]}  Kg8 {[%clk 0:01:00]} 25. gxf3 {[%clk 0:00:36]}  exf3 {[%clk 0:00:59]} 26. Ng4 {[%clk 0:00:36]}  Rxe1+ {[%clk 0:00:49]} 27. Rxe1 {[%clk 0:00:37]}  h5 {[%clk 0:00:40]} 28. Nf6+ {[%clk 0:00:36]}  Kf8 {[%clk 0:00:40]} 29. Nh7+ {[%clk 0:00:33]}  Kg8 {[%clk 0:00:39]} 30. Nf6+ {[%clk 0:00:34]}  Kf8 {[%clk 0:00:40]} 31. Nh7+ {[%clk 0:00:21]}  Kg8 {[%clk 0:00:40]} 32. Nf6+ {[%clk 0:00:22]} 1/2-1/2


[Site "https://www.chess.com"]